bitfinex/quotes_SOLUSD_20240917
["timestamp","ask_amount","ask_price","bid_price","bid_amount"]
[1726555723594,23.776884,132.56,132.53,42.5465]
[1726555724644,23.776884,132.56,132.54,7.5448]
[1726555726352,23.776884,132.57,132.54,7.5448]
[1726555727571,31.320084,132.57,132.53,26.4088]
[1726555728573,23.776884,132.55,132.53,18.8634]
[1726555729457,23.776884,132.55,132.52,7.5456]
[1726555732481,23.776884,132.55,132.53,7.5449]
[1726555732657,23.776884,132.56,132.53,7.5449]
[1726555743066,31.321084,132.56,132.52,18.8645]
[1726555743279,7.5444,132.55,132.52,18.8645]
[1726555743482,31.320784,132.56,132.52,18.8645]
[1726555743863,31.320784,132.56,132.52,26.4103]
[1726555744887,23.776884,132.56,132.53,7.5454]
[1726555747176,31.320584,132.56,132.52,26.4103]
[1726555753386,23.776884,132.56,132.53,7.5453]
[1726555755788,23.776884,132.56,132.52,18.8645]
[1726555755994,23.776884,132.57,132.52,18.8645]
[1726555757293,23.776884,132.54,132.52,18.8645]
[1726555758370,7.5455,132.53,132.51,15.5653]
[1726555758692,23.776884,132.52,132.51,15.5653]
[1726555760772,20.0,132.57,132.51,34.4312]
[1726555762188,23.776884,132.56,132.51,34.4312]
[1726555762498,31.320784,132.56,132.52,7.5458]
[1726555766077,20.0,132.57,132.51,41.9776]
[1726555766078,23.776884,132.54,132.51,41.9776]
[1726555766277,7.5455,132.53,132.51,15.5653]
[1726555766476,23.776884,132.54,132.51,15.5653]
[1726555767387,31.321784,132.54,132.51,15.5653]
[1726555768497,23.776884,132.54,132.51,23.1118]
[1726555770404,7.5439,132.56,132.52,7.5459]
[1726555772206,23.776884,132.55,132.52,7.5459]
[1726555778414,31.321284,132.55,132.51,23.1118]
[1726555779707,31.320784,132.56,132.52,7.5459]
[1726555795498,7.5443,132.55,132.51,23.1116]
[1726555795698,23.776884,132.54,132.51,23.1116]
[1726555795894,31.321884,132.54,132.51,15.5653]
[1726555805602,23.776884,132.52,132.51,15.5653]
[1726555808225,31.322884,132.52,132.49,6.2293]
[1726555808733,31.322884,132.52,132.48,15.3154]
[1726555808734,7.5467,132.51,132.48,15.3154]
[1726555808913,23.776884,132.5,132.48,15.3154]
[1726555809638,31.324084,132.5,132.48,15.3154]
[1726555810627,23.776884,132.5,132.48,15.3154]
[1726555823219,23.776884,132.51,132.48,15.3154]
[1726555823926,23.776884,132.51,132.48,22.8637]
[1726555824331,7.5456,132.53,132.49,7.5475]
[1726555825022,7.545,132.54,132.5,7.5471]
[1726555826334,23.776884,132.53,132.5,7.5471]
[1726555830928,23.776884,132.53,132.5,14.1549]
[1726555832234,7.5438,132.56,132.52,7.5456]
[1726555832416,7.5438,132.56,132.52,23.9903]
[1726555833438,23.776884,132.55,132.52,23.9903]
[1726555833745,31.321184,132.55,132.52,16.4447]
[1726555834748,7.5449,132.54,132.52,16.4447]
[1726555835038,23.776884,132.53,132.52,16.4447]
[1726555844955,23.776884,132.53,132.5,14.1547]
[1726555845126,31.322284,132.53,132.5,6.6078]
[1726555855137,23.776884,132.53,132.5,14.1549]
[1726555856066,43.776884,132.54,132.51,7.5465]
[1726555859075,23.776884,132.54,132.51,7.5465]
[1726555859360,7.5433,132.57,132.53,7.5454]
[1726555859541,7.7985993,132.58,132.53,24.0216]
[1726555860164,7.7985993,132.58,132.54,7.5447]
[1726555860761,23.776884,132.57,132.54,7.5447]
[1726555861068,23.776884,132.57,132.53,24.0215]
[1726555861261,7.5443,132.55,132.53,16.4762]
[1726555861562,23.776884,132.54,132.53,16.4762]
[1726555863467,23.776884,132.56,132.53,16.4762]
[1726555864346,23.776884,132.56,132.53,24.0216]
[1726555893190,24.0327833,132.58,132.55,7.5441]
[1726555893379,0.2558993,132.58,132.55,7.5441]
[1726555893578,0.2558993,132.58,132.57,29.1761]
[1726555912779,0.2558993,132.58,132.57,42.89757857]
[1726555913210,0.2558993,132.58,132.57,29.1761]
[1726555936927,0.2558993,132.58,132.56,7.5435]
[1726555937130,0.2558993,132.58,132.55,18.8604]
[1726555937309,23.776884,132.57,132.55,18.8604]
[1726555938196,24.0327833,132.58,132.55,18.8604]
[1726555938424,24.0327833,132.58,132.53,7.5453]
[1726555938637,0.2558993,132.58,132.53,7.5453]
[1726555939209,23.776884,132.56,132.53,7.5453]
[1726555939414,23.776884,132.57,132.53,7.5453]
[1726555946357,23.776884,132.57,132.54,7.5448]
[1726555950660,31.319984,132.57,132.53,7.5452]
[1726555950841,31.319984,132.57,132.52,26.4101]
[1726555950842,23.776884,132.55,132.52,26.4101]
[1726555951938,23.776884,132.55,132.52,18.8642]
[1726555957546,23.776884,132.55,132.52,26.4101]
[1726555980976,31.321184,132.55,132.52,18.8642]
[1726555995686,23.776884,132.53,132.5,7.547]
[1726555995990,23.776884,132.53,132.49,18.8684]
[1726555997283,23.776884,132.5,132.47,30.5155]
[1726555998484,23.776884,132.51,132.47,24.0398]
[1726555998682,31.323784,132.51,132.47,24.0398]
[1726556000490,23.776884,132.49,132.46,26.4218]
[1726556000966,23.776884,132.49,132.46,18.8725]
[1726556001310,23.776884,132.47,132.44,7.8062993]
[1726556003065,31.325784,132.47,132.44,0.2558993]
[1726556009794,23.776884,132.47,132.44,7.8062993]
[1726556014186,31.325784,132.47,132.44,0.2558993]
[1726556016095,23.776884,132.45,132.44,0.2558993]
[1726556016474,23.776884,132.45,132.44,0.2360169]
[1726556022615,23.776884,132.46,132.44,0.2360169]
[1726556022906,6.636,132.51,132.45,18.8748]
[1726556023107,341.7903,132.54,132.46,7.5494]
[1726556023108,7.5475,132.5,132.46,7.5494]
[1726556024609,23.776884,132.49,132.46,7.5494]
[1726556026503,31.324684,132.49,132.45,26.4247]
[1726556027610,23.776884,132.49,132.46,7.5493]
[1726556031511,31.324684,132.49,132.45,26.4246]
[1726556031891,7.5484,132.48,132.44,23.7486169]
[1726556032109,23.776884,132.47,132.44,23.7486169]
[1726556034910,31.325784,132.47,132.44,0.2360169]
[1726556035221,7.5495,132.46,132.44,0.2360169]
[1726556035417,23.776884,132.45,132.44,0.2360169]
[1726556043324,25.0976,132.5,132.44,0.2360169]
[1726556043514,43.776884,132.49,132.44,0.2360169]
[1726556044214,20.0,132.5,132.45,7.55]
[1726556044949,20.0,132.51,132.45,7.55]
[1726556045405,23.776884,132.48,132.45,7.55]
[1726556054727,31.325484,132.48,132.44,26.6626169]
[1726556055242,31.326384,132.46,132.44,0.2360169]
[1726556055739,31.326884,132.45,132.44,0.2360169]
[1726556060115,51.326884,132.45,132.44,0.2360169]
[1726556065752,26.326884,132.45,132.44,0.2360169]
[1726556066224,20.0,132.45,132.44,0.2360169]
[1726556067353,27.55,132.45,132.44,0.2360169]
[1726556068047,51.326884,132.45,132.44,0.2360169]
[1726556093879,31.326884,132.45,132.44,0.2360169]
[1726556094177,51.326884,132.45,132.44,0.2360169]
[1726556104180,43.776884,132.45,132.44,0.2360169]
[1726556104793,51.326884,132.45,132.44,0.2360169]
[1726556107492,55.27930138,132.45,132.44,0.2360169]
[1726556114404,51.326884,132.45,132.44,0.2360169]
[1726556120317,51.326884,132.45,132.37,18.8853]
[1726556120318,20.0,132.41,132.36,0.2595259]
[1726556120613,23.776884,132.37,132.36,0.2595259]
[1726556120791,31.331384,132.37,132.36,0.2595259]
[1726556121703,20.0,132.38,132.36,0.2595259]
[1726556121903,23.776884,132.39,132.36,0.2595259]
[1726556122217,23.776884,132.4,132.36,0.2595259]
[1726556122395,20.0,132.39,132.36,0.2595259]
[1726556122601,23.776884,132.38,132.36,0.2595259]
[1726556123288,31.330884,132.38,132.36,0.2595259]
[1726556126285,27.5535,132.39,132.36,0.2595259]
[1726556133199,23.776884,132.38,132.36,0.2595259]
[1726556133595,31.331384,132.37,132.36,0.2595259]
[1726556134723,7.5541,132.38,132.36,0.2595259]
[1726556146528,7.5545,132.37,132.36,0.2595259]
[1726556147612,31.331384,132.37,132.36,0.2595259]
[1726556159237,20.0,132.39,132.36,0.2595259]
[1726556159238,7.554,132.38,132.36,0.2595259]
[1726556167936,7.5545,132.37,132.36,0.2595259]
[1726556168354,31.331384,132.37,132.36,0.2595259]
[1726556176266,31.330884,132.38,132.36,0.2595259]
[1726556179020,31.331384,132.37,132.36,0.2595259]
[1726556184351,31.237484,132.37,132.36,0.2595259]
[1726556199864,23.776884,132.37,132.36,0.2595259]
[1726556218666,31.331384,132.37,132.36,0.2595259]
[1726556223257,23.776884,132.37,132.36,0.2595259]
[1726556226577,7.5541,132.38,132.36,0.2595259]
[1726556235579,23.776884,132.37,132.36,0.2595259]
[1726556245288,43.776884,132.38,132.36,0.2595259]
[1726556245490,3.95613019,132.39,132.36,16.4012259]
[1726556245665,23.95613019,132.4,132.38,7.5534]
[1726556245872,23.95613019,132.41,132.38,7.5534]
[1726556246195,11.50803019,132.42,132.38,7.5534]
[1726556246691,11.50803019,132.42,132.37,26.44]
[1726556247067,23.776884,132.41,132.37,26.44]
[1726556251191,23.776884,132.41,132.38,7.5539]
[1726556255688,7.5519,132.42,132.38,7.5539]
[1726556255689,43.776884,132.42,132.38,7.5539]
[1726556256370,51.328584,132.42,132.38,7.5539]
[1726556257583,43.776884,132.42,132.39,18.8832]
[1726556259869,51.328684,132.42,132.39,18.8832]
[1726556260781,7.5523,132.41,132.37,7.5544]
[1726556261871,51.328784,132.42,132.37,7.5544]
[1726556263000,51.328784,132.42,132.38,7.5539]
[1726556269831,23.776884,132.4,132.37,7.5544]
[1726556269991,31.329784,132.4,132.36,42.8435259]
[1726556271217,7.5535,132.39,132.36,19.1469259]
[1726556275324,23.776884,132.4,132.36,19.1469259]
[1726556275325,7.553,132.4,132.36,26.7019259]
[1726556275617,23.776884,132.39,132.36,26.7019259]
[1726556276200,20.0,132.42,132.36,19.1469259]
[1726556276508,31.329284,132.41,132.37,7.5545]
[1726556276923,7.5529,132.4,132.36,26.7019259]
[1726556277325,23.776884,132.38,132.36,19.1469259]
[1726556281331,7.5545,132.37,132.36,0.2595259]
[1726556281822,31.331384,132.37,132.36,0.2595259]
[1726556362102,23.776884,132.37,132.36,0.2595259]
[1726556368916,31.331384,132.37,132.36,0.2595259]
[1726556370512,55.28751419,132.37,132.36,0.2595259]
[1726556380236,51.331384,132.37,132.36,0.2595259]
[1726556381027,55.28751419,132.37,132.36,0.2595259]
[1726556381209,51.331384,132.37,132.36,0.2595259]
[1726556400538,51.331384,132.37,132.32,0.2595259]
[1726556400539,7.5568,132.33,132.32,0.2595259]
[1726556400849,7.5565,132.34,132.32,0.2595259]
[1726556401053,23.776884,132.33,132.32,0.2595259]
[1726556401425,31.333684,132.33,132.32,0.2595259]
[1726556404926,20.0,132.36,132.32,0.2595259]
[1726556405149,43.776884,132.36,132.32,0.2595259]
[1726556405650,23.95613019,132.38,132.32,23.8815259]
[1726556406056,3.95613019,132.38,132.32,23.8815259]
[1726556406858,7.5551,132.36,132.32,23.8815259]
[1726556407027,23.776884,132.35,132.32,23.8815259]
[1726556407226,31.332784,132.35,132.32,16.3242259]
[1726556407432,23.776884,132.33,132.32,16.3242259]
[1726556407858,31.333684,132.33,132.32,16.3242259]
[1726556408529,51.333684,132.33,132.32,16.3242259]
[1726556408725,51.333684,132.33,132.32,0.2595259]
[1726556413259,3.95613019,132.37,132.32,0.2595259]
[1726556413455,7.5558,132.35,132.32,0.2595259]
[1726556413752,20.0,132.37,132.34,7.5562]
[1726556413941,7.5544,132.38,132.33,23.3776]
[1726556414254,285.2,132.39,132.37,16.5071]
[1726556414455,12.04396273,132.43,132.37,16.5071]
[1726556414456,285.2,132.4,132.37,16.5071]
[1726556414750,285.2,132.4,132.38,7.5535]
[1726556414959,285.2,132.4,132.37,54.0616]
[1726556415456,285.2,132.4,132.39,7.5534]
[1726556415660,285.2,132.43,132.4,6.0172]
[1726556415838,285.2,132.42,132.4,36.0172]
[1726556416037,292.7522,132.41,132.4,30.0]
[1726556416244,302.76228,132.41,132.37,16.5071]
[1726556416559,7.5528,132.4,132.37,16.5071]
[1726556416751,7.5535,132.39,132.37,16.5071]
[1726556417141,23.776884,132.38,132.37,16.5071]
[1726556417448,31.330884,132.38,132.34,15.6291]
[1726556421646,31.330884,132.38,132.34,23.1852]
[1726556421951,23.776884,132.38,132.34,15.6291]
[1726556422143,20.0,132.39,132.36,7.5549]
[1726556422349,23.776884,132.38,132.35,26.4441]
[1726556423444,23.776884,132.38,132.35,18.8885]
[1726556423647,23.776884,132.38,132.35,26.4441]
[1726556428453,31.330984,132.38,132.34,23.1853]
[1726556430450,7.5547,132.37,132.34,15.6291]
[1726556430649,23.776884,132.36,132.34,15.6291]
[1726556430851,23.776884,132.36,132.33,13.9455]
[1726556436270,23.776884,132.36,132.33,7.5567]
[1726556436474,23.776884,132.36,132.32,19.1521259]
[1726556437359,23.776884,132.34,132.32,0.2595259]
[1726556438173,23.776884,132.35,132.32,7.8168259]
[1726556439375,23.776884,132.36,132.32,7.8168259]
[1726556439972,23.776884,132.36,132.33,7.5567]
[1726556441375,31.332084,132.36,132.32,7.8168259]
[1726556441546,31.332084,132.36,132.32,0.2595259]
[1726556442065,23.776884,132.34,132.32,0.2595259]
[1726556442986,7.556,132.35,132.32,7.8167259]
[1726556442987,23.776884,132.35,132.32,7.8167259]
[1726556443482,289.15613019,132.41,132.33,18.8917]
[1726556443775,7.5534,132.39,132.34,7.5557]
[1726556444158,7.553,132.4,132.35,7.5555]
[1726556444357,292.7524,132.41,132.36,7.555]
[1726556445787,23.776884,132.4,132.36,7.555]
[1726556446459,31.329884,132.4,132.36,7.555]
[1726556448684,23.776884,132.4,132.36,7.555]
[1726556450061,23.776884,132.4,132.37,7.5545]
[1726556451158,23.776884,132.41,132.38,7.5539]
[1726556452487,23.776884,132.42,132.39,7.553]
[1726556452678,7.551,132.44,132.39,7.553]
[1726556452679,43.776884,132.43,132.39,7.553]
[1726556452979,285.2,132.45,132.39,7.553]
[1726556452980,0.2595259,132.46,132.39,18.8832]
[1726556453185,7.5505,132.45,132.4,7.5527]
[1726556454066,7.5507,132.44,132.4,7.5527]
[1726556454281,23.776884,132.43,132.4,7.5527]
[1726556454777,7.5507,132.44,132.4,7.5527]
[1726556454982,20.0,132.44,132.4,7.5527]
[1726556456168,23.776884,132.43,132.4,7.5527]
[1726556459216,23.776884,132.43,132.41,7.5521]
[1726556459372,23.776884,132.44,132.41,7.5521]
[1726556460770,23.776884,132.44,132.4,7.5526]
[1726556463479,23.776884,132.44,132.41,7.5521]
[1726556470888,23.776884,132.44,132.39,34.7923]
[1726556471205,23.776884,132.45,132.39,34.7923]
[1726556472094,7.5511,132.43,132.39,42.3453]
[1726556473597,23.776884,132.42,132.39,42.3453]
[1726556473787,23.776884,132.4,132.38,6.0175]
[1726556473973,23.776884,132.4,132.36,16.0594]
[1726556474981,7.5536,132.39,132.36,16.0594]
[1726556475183,23.776884,132.38,132.36,16.0594]
[1726556477284,23.776884,132.39,132.36,16.0594]
[1726556481210,31.330284,132.39,132.36,16.0594]
[1726556481385,7.554,132.38,132.36,16.0594]
[1726556482102,7.554,132.38,132.35,6.5546]
[1726556482286,23.776884,132.37,132.35,6.5546]
[1726556482603,23.776884,132.37,132.33,34.851]
[1726556483396,23.776884,132.35,132.33,34.851]
[1726556483601,23.776884,132.35,132.33,15.9597]
[1726556493994,31.332584,132.35,132.32,0.2595259]
[1726556502517,31.333684,132.33,132.32,0.2595259]
[1726556502816,51.333684,132.33,132.32,0.2595259]
[1726556514111,51.333684,132.33,132.28,0.2595259]
[1726556514112,7.5586,132.3,132.28,0.2595259]
[1726556514821,23.776884,132.29,132.28,0.2595259]
[1726556515625,51.335984,132.29,132.28,0.2595259]
[1726556517310,23.776884,132.29,132.28,0.2595259]
[1726556522721,51.335984,132.29,132.28,0.2595259]
[1726556527432,43.776884,132.29,132.28,0.2595259]
[1726556527835,20.0,132.29,132.28,0.2595259]
[1726556529206,43.776884,132.29,132.28,0.2595259]
[1726556530310,51.335984,132.29,132.28,0.2595259]
[1726556531034,31.335984,132.29,132.28,0.2595259]
[1726556531530,51.335984,132.29,132.28,0.2595259]
[1726556541646,51.335984,132.29,132.24,0.2595259]
[1726556541647,7.5609,132.26,132.24,0.2595259]
[1726556542021,23.776884,132.25,132.24,0.2595259]
[1726556542229,31.338284,132.25,132.24,0.2595259]
[1726556542426,51.338284,132.25,132.24,0.2595259]
[1726556548518,43.776884,132.25,132.24,0.2595259]
[1726556551534,51.338284,132.25,132.24,0.2595259]
[1726556553332,51.338284,132.25,132.2,16.3795259]
[1726556553333,23.776884,132.22,132.2,16.3795259]
[1726556555534,31.339984,132.22,132.2,16.3795259]
[1726556556238,31.339984,132.22,132.2,0.2595259]
[1726556558758,23.776884,132.22,132.2,0.2595259]
[1726556560555,292.7613,132.26,132.2,0.2595259]
[1726556560853,285.2,132.26,132.21,35.2292]
[1726556561062,285.2,132.26,132.22,7.5629]
[1726556561253,292.7609,132.26,132.22,7.5629]
[1726556563061,285.2,132.26,132.23,7.5625]
[1726556563245,23.776884,132.25,132.23,7.5625]
[1726556564353,23.776884,132.25,132.24,7.562]
[1726556564536,23.776884,132.25,132.24,14.0489]
[1726556566560,23.776884,132.25,132.24,6.4869]
[1726556570042,23.776884,132.25,132.23,18.9061]
[1726556570665,31.338284,132.25,132.21,23.8838]
[1726556576653,23.776884,132.25,132.22,7.563]
[1726556576853,23.776884,132.25,132.23,7.5625]
[1726556577060,7.5604,132.27,132.23,7.5625]
[1726556577061,20.0,132.26,132.23,7.5625]
[1726556578471,23.776884,132.25,132.22,26.4704]
[1726556580075,31.338284,132.25,132.22,18.9075]
[1726556581075,31.338284,132.25,132.21,23.8838]
[1726556582377,23.776884,132.25,132.22,7.5631]
[1726556582671,23.776884,132.25,132.24,7.562]
[1726556582887,20.0,132.26,132.23,7.5624]
[1726556583451,27.5599,132.28,132.24,7.5618]
[1726556583652,7.5586,132.3,132.26,7.5608]
[1726556583879,7.5593,132.29,132.25,26.4645]
[1726556585045,23.776884,132.27,132.24,7.5615]
[1726556586064,23.776884,132.28,132.24,7.5615]
[1726556586882,23.776884,132.28,132.25,7.5614]
[1726556587671,31.336984,132.28,132.24,7.5618]
[1726556588952,31.336984,132.28,132.23,7.5624]
[1726556591354,23.776884,132.28,132.25,7.5614]
[1726556591682,20.0,132.28,132.25,7.5614]
[1726556591981,20.0,132.29,132.26,7.5608]
[1726556592479,27.5591,132.29,132.25,7.5613]
[1726556593159,23.776884,132.28,132.25,7.5613]
[1726556593478,23.776884,132.28,132.25,23.9764]
[1726556594074,23.776884,132.28,132.25,16.4151]
[1726556594075,31.336584,132.28,132.25,16.4151]
[1726556594565,23.776884,132.28,132.25,16.4151]
[1726556595276,23.776884,132.28,132.25,23.9763]
[1726556597884,31.336584,132.28,132.25,16.4151]
[1726556599071,23.776884,132.25,132.22,23.3674]
[1726556599389,23.776884,132.25,132.23,7.5624]
[1726556599562,23.776884,132.26,132.23,7.5624]
[1726556600687,31.337884,132.26,132.22,23.3676]
[1726556601067,23.776884,132.24,132.22,15.8047]
[1726556601809,23.776884,132.24,132.21,32.8325]
[1726556602965,23.776884,132.24,132.21,25.2689]
[1726556603164,23.776884,132.25,132.22,7.5629]
[1726556606886,31.338284,132.25,132.21,32.8324]
[1726556612895,31.337884,132.26,132.22,7.5631]
[1726556614885,23.776884,132.26,132.23,7.5625]
[1726556616201,31.337684,132.26,132.22,7.5629]
[1726556618971,31.337684,132.26,132.21,32.8324]
[1726556619170,7.5616,132.25,132.21,32.8324]
[1726556619371,31.338884,132.24,132.21,25.2689]
[1726556619581,23.776884,132.23,132.2,7.8236259]
[1726556622800,23.776884,132.23,132.2,0.2595259]
[1726556623000,23.776884,132.21,132.2,0.2595259]
[1726556623207,23.776884,132.21,132.2,7.8237259]
[1726556628794,7.5625,132.24,132.2,7.8237259]
[1726556629005,43.776884,132.24,132.21,7.5636]
[1726556629305,23.776884,132.25,132.22,7.563]
[1726556631492,31.338284,132.25,132.21,7.5635]
[1726556638120,31.338284,132.25,132.2,26.7339259]
[1726556640615,31.338284,132.25,132.21,7.5636]
[1726556642122,23.776884,132.25,132.22,7.5631]
[1726556642303,31.338284,132.25,132.21,7.5635]
[1726556650099,3.95613019,132.27,132.2,19.1699259]
[1726556650100,31.337884,132.26,132.22,7.5631]
[1726556650438,20.0,132.25,132.22,7.5631]
[1726556650607,23.776884,132.26,132.23,7.5625]
[1726556650809,285.2,132.28,132.26,18.9018]
[1726556651025,285.2,132.29,132.26,18.9018]
[1726556651626,285.2,132.29,132.27,7.5602]
[1726556651929,285.2,132.29,132.26,18.9018]
[1726556653332,285.2,132.29,132.27,7.5601]
[1726556654403,23.776884,132.3,132.28,15.4921]
[1726556655732,23.776884,132.3,132.27,7.5598]
[1726556659215,23.776884,132.31,132.27,7.5598]
[1726556666337,31.334984,132.31,132.27,7.5598]
[1726556670437,23.776884,132.31,132.27,7.5598]
[1726556670743,23.776884,132.31,132.28,7.5595]
[1726556672524,23.776884,132.32,132.28,23.2737]
[1726556675643,31.334284,132.32,132.28,23.2737]
[1726556677741,7.5589,132.3,132.26,26.4623]
[1726556677949,23.776884,132.29,132.26,26.4623]
[1726556686331,23.776884,132.29,132.27,7.5602]
[1726556686531,43.776884,132.3,132.27,7.5602]
[1726556687040,51.335484,132.3,132.26,26.4625]
[1726556696662,23.776884,132.28,132.26,18.9018]
[1726556700666,23.776884,132.29,132.26,26.4626]
[1726556701763,23.776884,132.29,132.27,7.5602]
[1726556704169,20.0,132.3,132.27,7.5602]
[1726556706367,27.5589,132.3,132.26,18.9018]
[1726556706544,27.5589,132.3,132.26,26.4622]
[1726556707168,31.336084,132.29,132.26,18.9018]
[1726556707647,23.776884,132.29,132.26,18.9018]
[1726556707968,23.776884,132.29,132.26,26.4624]
[1726556709272,23.776884,132.29,132.27,7.5598]
[1726556711072,23.776884,132.29,132.25,15.7592]
[1726556711850,31.336184,132.29,132.25,23.3205]
[1726556712942,23.776884,132.29,132.26,7.5607]
[1726556715369,20.0,132.3,132.27,7.5602]
[1726556723061,0.2595259,132.34,132.29,15.6166]
[1726556723357,7.8159259,132.34,132.3,7.5581]
[1726556723756,7.8159259,132.34,132.29,34.5142]
[1726556723757,0.2595259,132.34,132.31,7.5579]
[1726556724354,0.2595259,132.34,132.33,7.5568]
[1726556724550,0.2595259,132.34,132.33,23.2965]
[1726556724894,0.2595259,132.34,132.33,35.51291615]
[1726556726066,0.2595259,132.38,132.33,35.51291615]
[1726556726067,0.2595259,132.38,132.37,7.5545]
[1726556726262,0.2595259,132.38,132.37,24.1167]
[1726556730858,0.2595259,132.38,132.37,16.5622]
[1726556732976,0.2595259,132.38,132.37,24.1167]
[1726556737591,0.2595259,132.38,132.37,36.33311615]
[1726556738373,0.2595259,132.38,132.37,42.84081615]
[1726556740295,0.2595259,132.38,132.37,80.61371615]
[1726556740791,0.2595259,132.42,132.41,7.5522]
[1726556740962,0.2595259,132.42,132.41,19.76861615]
[1726556742090,0.2595259,132.42,132.41,7.5522]
[1726556744309,0.2595259,132.42,132.41,19.76861615]
[1726556745373,0.2595259,132.42,132.41,35.85701615]
[1726556745569,0.2595259,132.42,132.41,37.3661047]
[1726556747395,0.2595259,132.42,132.41,25.14968855]
[1726556748108,0.2595259,132.42,132.41,23.6406]
[1726556767813,0.2595259,132.42,132.4,18.881]
[1726556769932,0.2595259,132.42,132.4,26.4338]
[1726556773435,0.2595259,132.42,132.4,18.881]
[1726556777322,0.2595259,132.42,132.39,7.5532]
[1726556784916,0.2595259,132.42,132.4,7.5528]
[1726556791967,0.2595259,132.42,132.39,26.4366]
[1726556792120,7.8117259,132.42,132.37,6.5077]
[1726556792825,7.8117259,132.42,132.38,7.5536]
[1726556794166,0.2595259,132.42,132.39,7.5533]
[1726556797949,0.2595259,132.42,132.38,18.8847]
[1726556797950,31.5881099,132.42,132.38,26.4384]
[1726556798152,7.5523,132.41,132.38,18.8847]
[1726556800166,7.5523,132.41,132.38,26.4387]
[1726556800348,31.5882099,132.42,132.38,26.4387]
[1726556800667,7.5524,132.41,132.38,18.8847]
[1726556802460,31.5882099,132.42,132.38,26.4385]
[1726556807574,0.2595259,132.42,132.39,7.5533]
[1726556807777,0.2595259,132.42,132.4,7.5527]
[1726556808551,0.2595259,132.42,132.39,7.5532]
[1726556811087,7.8112259,132.42,132.38,26.4382]
[1726556817096,0.2595259,132.42,132.38,18.8847]
[1726556819367,0.2595259,132.42,132.39,7.5532]
[1726556820096,0.2595259,132.42,132.4,7.5527]
[1726556824001,0.2595259,132.42,132.39,7.5533]
[1726556826291,0.2595259,132.42,132.38,26.4385]
[1726556826292,7.8113259,132.42,132.38,26.4385]
[1726556827272,7.8113259,132.42,132.36,23.135]
[1726556827273,7.5528,132.4,132.36,23.135]
[1726556827499,20.2595259,132.42,132.37,7.5544]
[1726556827500,7.5523,132.41,132.37,7.5544]
[1726556831399,7.5523,132.41,132.37,26.4407]
[1726556831576,27.8114259,132.42,132.38,7.5539]
[1726556831779,23.776884,132.41,132.38,7.5539]
[1726556840514,20.2595259,132.42,132.39,7.5533]
[1726556840716,0.2595259,132.42,132.39,7.5533]
[1726556841100,0.2595259,132.42,132.4,7.5528]
[1726556843017,0.2595259,132.42,132.39,26.4365]
[1726556843522,23.776884,132.41,132.38,7.5539]
[1726556844000,31.329184,132.41,132.36,34.4672]
[1726556844330,31.329184,132.41,132.37,7.5544]
[1726556859527,31.329184,132.41,132.38,7.554]
[1726556863223,7.8114259,132.42,132.38,7.554]
[1726556863402,31.5883099,132.42,132.38,7.554]
[1726556866422,7.5523,132.41,132.37,7.5543]
[1726556874241,31.329784,132.4,132.36,42.0221]
[1726556874424,7.5529,132.4,132.36,42.0221]
[1726556877439,23.776884,132.4,132.37,7.5545]
[1726556881045,0.2595259,132.42,132.38,18.8848]
[1726556881245,0.2595259,132.42,132.41,7.5522]
[1726556960912,0.2595259,132.42,132.41,16.11645725]
[1726556961216,0.2595259,132.42,132.41,28.3328734]
[1726556962627,0.2595259,132.42,132.41,19.76861615]
[1726556963494,0.2595259,132.42,132.41,28.33269227]
[1726556964395,0.2595259,132.42,132.41,28.33249265]
[1726556965312,0.2595259,132.42,132.41,19.76861615]
[1726556965501,0.2595259,132.42,132.41,28.33246372]